[Event "Early Titled Tuesday Blitz | February 8 2022"]
[White "Dylag, Emilia"]
[Black "Zarnicki, Pablo"]
[WhiteFideId "21805172"]
[BlackFideId "100137"]
[WhiteElo "1932"]
[BlackElo "2467"]
[Result "0-1"]
[Round "07"]
[TimeControl "180+1"]
[Date "2022.02.08"]
[WhiteClock "0:00:02"]
[BlackClock "0:00:15"]

1. d4 {[%clk 0:03:00]}  Nf6 {[%clk 0:02:37]} 2. c4 {[%clk 0:02:59]}  g6 {[%clk 0:02:38]} 3. Nc3 {[%clk 0:02:56]}  Bg7 {[%clk 0:02:38]} 4. e4 {[%clk 0:02:56]}  d6 {[%clk 0:02:23]} 5. Be2 {[%clk 0:02:56]}  O-O {[%clk 0:02:21]} 6. Nf3 {[%clk 0:02:56]}  e5 {[%clk 0:02:21]} 7. O-O {[%clk 0:02:54]}  Nc6 {[%clk 0:02:21]} 8. d5 {[%clk 0:02:53]}  Nd4 {[%clk 0:02:22]} 9. Nxd4 {[%clk 0:02:52]}  exd4 {[%clk 0:02:23]} 10. Qxd4 {[%clk 0:02:51]}  Re8 {[%clk 0:02:24]} 11. Qd3 {[%clk 0:02:35]}  Nd7 {[%clk 0:02:22]} 12. f4 {[%clk 0:02:29]}  Nc5 {[%clk 0:02:00]} 13. Qf3 {[%clk 0:02:27]}  f5 {[%clk 0:01:58]} 14. e5 {[%clk 0:02:15]}  dxe5 {[%clk 0:01:56]} 15. fxe5 {[%clk 0:02:15]}  Bxe5 {[%clk 0:01:57]} 16. Bh6 {[%clk 0:02:06]}  Qh4 {[%clk 0:01:51]} 17. Bf4 {[%clk 0:02:00]}  Bd7 {[%clk 0:01:47]} 18. g3 {[%clk 0:01:54]}  Qf6 {[%clk 0:01:42]} 19. Rfe1 {[%clk 0:01:31]}  Ne4 {[%clk 0:01:32]} 20. Bxe5 {[%clk 0:01:20]}  Rxe5 {[%clk 0:01:29]} 21. Rad1 {[%clk 0:01:17]}  Rae8 {[%clk 0:01:27]} 22. c5 {[%clk 0:01:14]}  Nxc5 {[%clk 0:01:16]} 23. Qf2 {[%clk 0:01:05]}  b6 {[%clk 0:00:46]} 24. d6 {[%clk 0:00:44]}  cxd6 {[%clk 0:00:40]} 25. Nd5 {[%clk 0:00:43]}  Qf7 {[%clk 0:00:24]} 26. Nc7 {[%clk 0:00:41]}  R8e7 {[%clk 0:00:24]} 27. Rxd6 {[%clk 0:00:35]}  Ne4 {[%clk 0:00:19]} 28. Qd4 {[%clk 0:00:05]}  Nxd6 {[%clk 0:00:19]} 29. Qxd6 {[%clk 0:00:04]}  Rxe2 {[%clk 0:00:19]} 30. Rd1 {[%clk 0:00:04]}  Re1+ {[%clk 0:00:17]} 31. Rxe1 {[%clk 0:00:04]}  Rxe1+ {[%clk 0:00:18]} 32. Kf2 {[%clk 0:00:05]}  Re7 {[%clk 0:00:17]} 33. Nd5 {[%clk 0:00:04]}  Re6 {[%clk 0:00:16]} 34. Qb8+ {[%clk 0:00:03]}  Kg7 {[%clk 0:00:17]} 35. Qf4 {[%clk 0:00:01]}  Bc6 {[%clk 0:00:16]} 36. Ne3 {[%clk 0:00:01]}  Qe7 {[%clk 0:00:16]} 37. Qd4+ {[%clk 0:00:02]}  Qf6 {[%clk 0:00:15]} 38. Nc4 {[%clk 0:00:02]}  Qxd4+ {[%clk 0:00:15]} 0-1


[Site "https://www.chess.com"]

[Event "Early Titled Tuesday Blitz | February 8 2022"]
[White "Dzhaparov, Medet"]
[Black "Thomas, Anysia"]
[WhiteFideId "13803689"]
[BlackFideId "670472"]
[WhiteElo "1702"]
[BlackElo "2002"]
[Result "0-1"]
[Round "07"]
[TimeControl "180+1"]
[Date "2022.02.08"]
[WhiteClock "0:01:52"]
[BlackClock "0:01:34"]

1. e4 {[%clk 0:02:59]}  c5 {[%clk 0:02:59]} 2. Nf3 {[%clk 0:02:59]}  g6 {[%clk 0:02:59]} 3. d4 {[%clk 0:03:00]}  cxd4 {[%clk 0:03:00]} 4. Nxd4 {[%clk 0:03:00]}  Nc6 {[%clk 0:03:00]} 5. Nc3 {[%clk 0:03:01]}  Bg7 {[%clk 0:02:59]} 6. Be3 {[%clk 0:03:01]}  Nf6 {[%clk 0:02:58]} 7. Bc4 {[%clk 0:02:47]}  O-O {[%clk 0:02:58]} 8. O-O {[%clk 0:02:46]}  Nxe4 {[%clk 0:02:55]} 9. Nxe4 {[%clk 0:02:42]}  d5 {[%clk 0:02:54]} 10. Nxc6 {[%clk 0:02:40]}  bxc6 {[%clk 0:02:53]} 11. Bd3 {[%clk 0:02:38]}  dxe4 {[%clk 0:02:52]} 12. Bxe4 {[%clk 0:02:39]}  Qc7 {[%clk 0:02:51]} 13. c3 {[%clk 0:02:38]}  Rb8 {[%clk 0:02:42]} 14. Rb1 {[%clk 0:02:37]}  Ba6 {[%clk 0:02:42]} 15. Re1 {[%clk 0:02:35]}  Rfd8 {[%clk 0:02:42]} 16. Qf3 {[%clk 0:02:35]}  Bc4 {[%clk 0:02:34]} 17. b3 {[%clk 0:02:25]}  Bd5 {[%clk 0:02:31]} 18. c4 {[%clk 0:02:23]}  Bxe4 {[%clk 0:02:22]} 19. Qxe4 {[%clk 0:02:24]}  Rb7 {[%clk 0:02:08]} 20. Bf4 {[%clk 0:02:22]}  Qd7 {[%clk 0:02:04]} 21. Qf3 {[%clk 0:02:13]}  Qf5 {[%clk 0:01:44]} 22. Qxc6 {[%clk 0:02:03]}  Rbd7 {[%clk 0:01:37]} 23. Bg3 {[%clk 0:01:54]}  Rd2 {[%clk 0:01:35]} 24. Rxe7 {[%clk 0:01:52]}  Qxb1+ {[%clk 0:01:34]} 0-1


[Site "https://www.chess.com"]

[Event "Early Titled Tuesday Blitz | February 8 2022"]
[White "Fajdetic, Hrvoje"]
[Black "Varney, Zoe"]
[WhiteFideId "14501945"]
[BlackFideId "436135"]
[WhiteElo "2140"]
[BlackElo "1808"]
[Result "1-0"]
[Round "07"]
[TimeControl "180+1"]
[Date "2022.02.08"]
[WhiteClock "0:00:21"]
[BlackClock "0:00:05"]

1. d4 {[%clk 0:02:46]}  d5 {[%clk 0:03:00]} 2. Bf4 {[%clk 0:02:46]}  Nf6 {[%clk 0:02:59]} 3. e3 {[%clk 0:02:46]}  c5 {[%clk 0:03:00]} 4. Nc3 {[%clk 0:02:46]}  e6 {[%clk 0:02:58]} 5. Nb5 {[%clk 0:02:45]}  Na6 {[%clk 0:02:57]} 6. Nf3 {[%clk 0:02:45]}  Be7 {[%clk 0:02:55]} 7. c3 {[%clk 0:02:44]}  O-O {[%clk 0:02:55]} 8. a4 {[%clk 0:02:44]}  Bd7 {[%clk 0:02:50]} 9. Be2 {[%clk 0:02:39]}  Nh5 {[%clk 0:02:44]} 10. Be5 {[%clk 0:02:37]}  f6 {[%clk 0:02:40]} 11. Bg3 {[%clk 0:02:37]}  Nxg3 {[%clk 0:02:39]} 12. hxg3 {[%clk 0:02:38]}  Nc7 {[%clk 0:02:38]} 13. Bd3 {[%clk 0:02:27]}  c4 {[%clk 0:02:33]} 14. Bxh7+ {[%clk 0:02:27]}  Kf7 {[%clk 0:02:29]} 15. Qc2 {[%clk 0:02:24]}  f5 {[%clk 0:02:20]} 16. Ne5+ {[%clk 0:02:17]}  Kf6 {[%clk 0:02:08]} 17. g4 {[%clk 0:02:08]}  Nxb5 {[%clk 0:01:55]} 18. f4 {[%clk 0:01:57]}  g5 {[%clk 0:00:57]} 19. fxg5+ {[%clk 0:01:45]}  Kg7 {[%clk 0:00:44]} 20. axb5 {[%clk 0:01:43]}  Bxg5 {[%clk 0:00:43]} 21. gxf5 {[%clk 0:01:36]}  exf5 {[%clk 0:00:31]} 22. g4 {[%clk 0:01:22]}  Bh4+ {[%clk 0:00:19]} 23. Kd1 {[%clk 0:01:17]}  Kxh7 {[%clk 0:00:19]} 24. Nf3 {[%clk 0:01:10]}  Kg7 {[%clk 0:00:18]} 25. Nxh4 {[%clk 0:01:08]}  Rf6 {[%clk 0:00:15]} 26. gxf5 {[%clk 0:01:04]}  Rh6 {[%clk 0:00:14]} 27. Qg2+ {[%clk 0:01:02]}  Kh7 {[%clk 0:00:12]} 28. Qxd5 {[%clk 0:00:40]}  Rxh4 {[%clk 0:00:07]} 29. Rxh4+ {[%clk 0:00:30]}  Qxh4 {[%clk 0:00:08]} 30. Qxd7+ {[%clk 0:00:29]}  Kh6 {[%clk 0:00:08]} 31. Qe6+ {[%clk 0:00:27]}  Kh7 {[%clk 0:00:07]} 32. Qxc4 {[%clk 0:00:25]}  Qh1+ {[%clk 0:00:06]} 33. Kc2 {[%clk 0:00:24]}  Qxa1 {[%clk 0:00:06]} 34. Qf7+ {[%clk 0:00:24]}  Kh8 {[%clk 0:00:05]} 35. Qh5+ {[%clk 0:00:24]}  Kg8 {[%clk 0:00:05]} 36. Qg6+ {[%clk 0:00:23]}  Kf8 {[%clk 0:00:05]} 37. f6 {[%clk 0:00:22]}  Qa4+ {[%clk 0:00:05]} 38. Kd2 {[%clk 0:00:21]} 1-0


[Site "https://www.chess.com"]

[Event "Early Titled Tuesday Blitz | February 8 2022"]
[White "Garcia Martin, Marta"]
[Black "Yang, Kaiqi"]
[WhiteFideId "32084030"]
[BlackFideId "8604398"]
[WhiteElo "2102"]
[BlackElo "2373"]
[Result "0-1"]
[Round "07"]
[TimeControl "180+1"]
[Date "2022.02.08"]
[WhiteClock "0:00:08"]
[BlackClock "0:00:09"]

1. Nf3 {[%clk 0:02:59]}  Nf6 {[%clk 0:02:59]} 2. e3 {[%clk 0:02:58]}  g6 {[%clk 0:02:59]} 3. b3 {[%clk 0:02:53]}  Bg7 {[%clk 0:03:00]} 4. Bb2 {[%clk 0:02:53]}  d6 {[%clk 0:03:00]} 5. c4 {[%clk 0:02:53]}  O-O {[%clk 0:02:58]} 6. Be2 {[%clk 0:02:53]}  e5 {[%clk 0:02:59]} 7. O-O {[%clk 0:02:53]}  Nc6 {[%clk 0:02:57]} 8. d4 {[%clk 0:02:53]}  e4 {[%clk 0:02:51]} 9. Nfd2 {[%clk 0:02:53]}  Re8 {[%clk 0:02:52]} 10. Nc3 {[%clk 0:02:51]}  h5 {[%clk 0:02:52]} 11. a3 {[%clk 0:02:40]}  a5 {[%clk 0:02:45]} 12. Qc2 {[%clk 0:02:30]}  Bf5 {[%clk 0:02:44]} 13. d5 {[%clk 0:01:57]}  Nb8 {[%clk 0:02:29]} 14. b4 {[%clk 0:01:45]}  Na6 {[%clk 0:02:28]} 15. Qb3 {[%clk 0:01:39]}  h4 {[%clk 0:02:25]} 16. h3 {[%clk 0:01:35]}  Qd7 {[%clk 0:02:22]} 17. Kh2 {[%clk 0:01:29]}  g5 {[%clk 0:02:15]} 18. Nb5 {[%clk 0:01:19]}  g4 {[%clk 0:02:10]} 19. Nd4 {[%clk 0:01:10]}  Bg6 {[%clk 0:01:58]} 20. Rg1 {[%clk 0:01:03]}  Kh7 {[%clk 0:01:51]} 21. g3 {[%clk 0:00:58]}  gxh3 {[%clk 0:01:09]} 22. gxh4 {[%clk 0:00:57]}  Rg8 {[%clk 0:01:04]} 23. Rg5 {[%clk 0:00:41]}  Bh6 {[%clk 0:01:01]} 24. Rag1 {[%clk 0:00:38]}  Rae8 {[%clk 0:00:54]} 25. R5g3 {[%clk 0:00:20]}  axb4 {[%clk 0:00:42]} 26. axb4 {[%clk 0:00:21]}  Bh5 {[%clk 0:00:36]} 27. Bxh5 {[%clk 0:00:19]}  Nxh5 {[%clk 0:00:36]} 28. Rg5 {[%clk 0:00:16]}  Bxg5 {[%clk 0:00:33]} 29. hxg5 {[%clk 0:00:17]}  Re5 {[%clk 0:00:31]} 30. Ne6 {[%clk 0:00:12]}  fxe6 {[%clk 0:00:26]} 31. Bxe5 {[%clk 0:00:12]}  dxe5 {[%clk 0:00:26]} 32. Nxe4 {[%clk 0:00:11]}  exd5 {[%clk 0:00:22]} 33. Qd1 {[%clk 0:00:11]}  Kg6 {[%clk 0:00:11]} 34. Qxh5+ {[%clk 0:00:09]}  Kxh5 {[%clk 0:00:11]} 35. Nf6+ {[%clk 0:00:10]}  Kg6 {[%clk 0:00:11]} 36. Nxd7 {[%clk 0:00:10]}  dxc4 {[%clk 0:00:10]} 37. Nxe5+ {[%clk 0:00:10]}  Kf5 {[%clk 0:00:10]} 38. Nxc4 {[%clk 0:00:10]}  Rxg5 {[%clk 0:00:09]} 39. e4+ {[%clk 0:00:09]}  Kg6 {[%clk 0:00:09]} 40. Ne5+ {[%clk 0:00:07]}  Kh5 {[%clk 0:00:08]} 41. Rxg5+ {[%clk 0:00:05]}  Kxg5 {[%clk 0:00:09]} 42. Kxh3 {[%clk 0:00:06]}  Kf4 {[%clk 0:00:09]} 43. b5 {[%clk 0:00:05]}  Kxe5 {[%clk 0:00:07]} 44. bxa6 {[%clk 0:00:05]}  bxa6 {[%clk 0:00:07]} 45. Kg3 {[%clk 0:00:06]}  Kxe4 {[%clk 0:00:07]} 46. Kg4 {[%clk 0:00:05]}  a5 {[%clk 0:00:06]} 47. f4 {[%clk 0:00:05]}  a4 {[%clk 0:00:06]} 48. f5 {[%clk 0:00:06]}  a3 {[%clk 0:00:07]} 49. f6 {[%clk 0:00:07]}  a2 {[%clk 0:00:07]} 50. f7 {[%clk 0:00:08]}  a1=Q {[%clk 0:00:08]} 51. f8=Q {[%clk 0:00:08]}  Qg1+ {[%clk 0:00:08]} 52. Kh3 {[%clk 0:00:09]}  Qh1+ {[%clk 0:00:08]} 53. Kg3 {[%clk 0:00:09]}  Qg1+ {[%clk 0:00:08]} 54. Kh3 {[%clk 0:00:09]}  Qe3+ {[%clk 0:00:08]} 55. Kg2 {[%clk 0:00:08]}  Qe2+ {[%clk 0:00:07]} 56. Kg1 {[%clk 0:00:08]}  Qg4+ {[%clk 0:00:07]} 57. Kf2 {[%clk 0:00:06]}  Qf4+ {[%clk 0:00:07]} 58. Qxf4+ {[%clk 0:00:06]}  Kxf4 {[%clk 0:00:08]} 59. Ke2 {[%clk 0:00:07]}  Ke4 {[%clk 0:00:08]} 60. Kd2 {[%clk 0:00:08]}  Kd4 {[%clk 0:00:09]} 0-1


[Site "https://www.chess.com"]

[Event "Early Titled Tuesday Blitz | February 8 2022"]
[White "Gunina, Valentina"]
[Black "Molina, Roberto Junio Brito"]
[WhiteFideId "4167570"]
[BlackFideId "2109450"]
[WhiteElo "2465"]
[BlackElo "2402"]
[Result "0-1"]
[Round "07"]
[TimeControl "180+1"]
[Date "2022.02.08"]
[WhiteClock "0:00:09"]
[BlackClock "0:01:18"]

1. d4 {[%clk 0:03:00]}  d5 {[%clk 0:03:00]} 2. c4 {[%clk 0:02:59]}  c6 {[%clk 0:03:00]} 3. Nf3 {[%clk 0:02:59]}  Nf6 {[%clk 0:03:01]} 4. Nc3 {[%clk 0:02:59]}  dxc4 {[%clk 0:03:00]} 5. e4 {[%clk 0:02:59]}  b5 {[%clk 0:03:00]} 6. Be2 {[%clk 0:03:00]}  e6 {[%clk 0:02:59]} 7. a4 {[%clk 0:02:59]}  b4 {[%clk 0:02:59]} 8. e5 {[%clk 0:03:00]}  bxc3 {[%clk 0:03:00]} 9. exf6 {[%clk 0:03:00]}  cxb2 {[%clk 0:03:00]} 10. Bxb2 {[%clk 0:03:00]}  Qa5+ {[%clk 0:02:53]} 11. Kf1 {[%clk 0:02:58]}  gxf6 {[%clk 0:02:52]} 12. Bxc4 {[%clk 0:02:58]}  Ba6 {[%clk 0:02:51]} 13. Be2 {[%clk 0:02:55]}  Bxe2+ {[%clk 0:02:50]} 14. Qxe2 {[%clk 0:02:54]}  Qa6 {[%clk 0:02:48]} 15. d5 {[%clk 0:02:45]}  cxd5 {[%clk 0:02:43]} 16. Bxf6 {[%clk 0:02:44]}  Rg8 {[%clk 0:02:43]} 17. Ne5 {[%clk 0:02:39]}  Qxe2+ {[%clk 0:02:35]} 18. Kxe2 {[%clk 0:02:38]}  Nd7 {[%clk 0:02:36]} 19. Nxd7 {[%clk 0:02:38]}  Kxd7 {[%clk 0:02:37]} 20. Rab1 {[%clk 0:02:36]}  Bc5 {[%clk 0:02:26]} 21. Rb7+ {[%clk 0:02:34]}  Kd6 {[%clk 0:02:20]} 22. Rc1 {[%clk 0:02:28]}  Bb6 {[%clk 0:02:09]} 23. f4 {[%clk 0:02:12]}  Rxg2+ {[%clk 0:01:58]} 24. Kd3 {[%clk 0:02:12]}  e5 {[%clk 0:01:48]} 25. Bxe5+ {[%clk 0:02:07]}  Ke6 {[%clk 0:01:48]} 26. Rc6+ {[%clk 0:02:01]}  Kf5 {[%clk 0:01:48]} 27. Rxf7+ {[%clk 0:01:57]}  Kg4 {[%clk 0:01:48]} 28. Rxh7 {[%clk 0:01:54]}  Ra2 {[%clk 0:01:43]} 29. Rg7+ {[%clk 0:00:54]}  Kf3 {[%clk 0:01:42]} 30. Rcg6 {[%clk 0:00:51]}  Ra3+ {[%clk 0:01:30]} 31. Kd2 {[%clk 0:00:41]}  Be3+ {[%clk 0:01:28]} 32. Kd1 {[%clk 0:00:35]}  Rc8 {[%clk 0:01:25]} 33. Rg3+ {[%clk 0:00:24]}  Ke4 {[%clk 0:01:25]} 34. Ke2 {[%clk 0:00:09]}  Ra2+ {[%clk 0:01:18]} 0-1


[Site "https://www.chess.com"]

[Event "Early Titled Tuesday Blitz | February 8 2022"]
[White "Haukenfrers, Dale"]
[Black "Ashiev, Eduard"]
[WhiteFideId "2603780"]
[BlackFideId "4130090"]
[WhiteElo "1990"]
[BlackElo "2004"]
[Result "0-1"]
[Round "07"]
[TimeControl "180+1"]
[Date "2022.02.08"]
[WhiteClock "0:00:36"]
[BlackClock "0:00:02"]

1. e3 {[%clk 0:03:00]}  d5 {[%clk 0:02:59]} 2. Nf3 {[%clk 0:03:00]}  Nf6 {[%clk 0:02:59]} 3. c3 {[%clk 0:02:59]}  c5 {[%clk 0:02:58]} 4. d4 {[%clk 0:02:57]}  Nbd7 {[%clk 0:02:57]} 5. Nbd2 {[%clk 0:02:41]}  g6 {[%clk 0:02:56]} 6. Bd3 {[%clk 0:02:35]}  Bg7 {[%clk 0:02:56]} 7. O-O {[%clk 0:02:35]}  O-O {[%clk 0:02:51]} 8. Ne5 {[%clk 0:02:35]}  Qc7 {[%clk 0:02:46]} 9. f4 {[%clk 0:02:34]}  b6 {[%clk 0:02:45]} 10. Qf3 {[%clk 0:02:23]}  a5 {[%clk 0:02:44]} 11. Rf2 {[%clk 0:02:17]}  Bb7 {[%clk 0:02:41]} 12. g4 {[%clk 0:02:09]}  Ne8 {[%clk 0:02:41]} 13. Qh3 {[%clk 0:01:59]}  Nd6 {[%clk 0:02:00]} 14. Nxd7 {[%clk 0:01:37]}  Qxd7 {[%clk 0:01:59]} 15. f5 {[%clk 0:01:37]}  e5 {[%clk 0:01:39]} 16. f6 {[%clk 0:01:30]}  Bh8 {[%clk 0:01:35]} 17. dxe5 {[%clk 0:01:30]}  Ne4 {[%clk 0:01:34]} 18. Bxe4 {[%clk 0:01:24]}  dxe4 {[%clk 0:01:34]} 19. Nxe4 {[%clk 0:01:25]}  Bxe4 {[%clk 0:01:32]} 20. Rd2 {[%clk 0:01:24]}  Qe6 {[%clk 0:01:28]} 21. Qg3 {[%clk 0:01:21]}  Rfe8 {[%clk 0:01:21]} 22. Rd6 {[%clk 0:01:14]}  Qxe5 {[%clk 0:01:19]} 23. Qxe5 {[%clk 0:01:13]}  Rxe5 {[%clk 0:01:19]} 24. Rxb6 {[%clk 0:01:13]}  g5 {[%clk 0:01:16]} 25. h4 {[%clk 0:01:11]}  h6 {[%clk 0:01:10]} 26. b4 {[%clk 0:01:10]}  axb4 {[%clk 0:00:36]} 27. cxb4 {[%clk 0:01:10]}  cxb4 {[%clk 0:00:31]} 28. Bb2 {[%clk 0:01:09]}  Re6 {[%clk 0:00:31]} 29. Rxb4 {[%clk 0:01:09]}  Rae8 {[%clk 0:00:24]} 30. a4 {[%clk 0:01:07]}  Bxf6 {[%clk 0:00:21]} 31. Bxf6 {[%clk 0:01:05]}  Rxf6 {[%clk 0:00:21]} 32. hxg5 {[%clk 0:01:05]}  hxg5 {[%clk 0:00:21]} 33. a5 {[%clk 0:01:05]}  Ra6 {[%clk 0:00:16]} 34. Kh2 {[%clk 0:01:00]}  Kg7 {[%clk 0:00:16]} 35. Kg3 {[%clk 0:01:00]}  Bd5 {[%clk 0:00:12]} 36. Rb5 {[%clk 0:01:00]}  Be6 {[%clk 0:00:12]} 37. Rxg5+ {[%clk 0:01:00]}  Kf6 {[%clk 0:00:11]} 38. Rb5 {[%clk 0:00:57]}  Rg8 {[%clk 0:00:11]} 39. g5+ {[%clk 0:00:56]}  Rxg5+ {[%clk 0:00:11]} 40. Rxg5 {[%clk 0:00:56]}  Kxg5 {[%clk 0:00:11]} 41. e4 {[%clk 0:00:55]}  Bd7 {[%clk 0:00:05]} 42. e5 {[%clk 0:00:54]}  Kf5 {[%clk 0:00:04]} 43. e6 {[%clk 0:00:53]}  Bxe6 {[%clk 0:00:04]} 44. Kf3 {[%clk 0:00:53]}  Ke5 {[%clk 0:00:04]} 45. Ke3 {[%clk 0:00:53]}  Kd5 {[%clk 0:00:04]} 46. Kd3 {[%clk 0:00:53]}  Kc5 {[%clk 0:00:05]} 47. Kc3 {[%clk 0:00:53]}  Kb5 {[%clk 0:00:05]} 48. Re1 {[%clk 0:00:53]}  Rxa5 {[%clk 0:00:05]} 49. Rb1+ {[%clk 0:00:53]}  Kc5 {[%clk 0:00:05]} 50. Rg1 {[%clk 0:00:52]}  Ra3+ {[%clk 0:00:05]} 51. Kb2 {[%clk 0:00:52]}  Rb3+ {[%clk 0:00:04]} 52. Ka1 {[%clk 0:00:51]}  Rb4 {[%clk 0:00:03]} 53. Rc1+ {[%clk 0:00:50]}  Kd6 {[%clk 0:00:02]} 54. Rh1 {[%clk 0:00:50]}  Ke7 {[%clk 0:00:02]} 55. Re1 {[%clk 0:00:49]}  Rc4 {[%clk 0:00:01]} 56. Rf1 {[%clk 0:00:48]}  f5 {[%clk 0:00:01]} 57. Rh1 {[%clk 0:00:47]}  Kf6 {[%clk 0:00:02]} 58. Rh7 {[%clk 0:00:47]}  Ke5 {[%clk 0:00:02]} 59. Rh5 {[%clk 0:00:46]}  Bd5 {[%clk 0:00:03]} 60. Rh2 {[%clk 0:00:43]}  Ke4 {[%clk 0:00:02]} 61. Kb2 {[%clk 0:00:43]}  f4 {[%clk 0:00:02]} 62. Re2+ {[%clk 0:00:42]}  Kf3 {[%clk 0:00:02]} 63. Re5 {[%clk 0:00:42]}  Be4 {[%clk 0:00:02]} 64. Kb3 {[%clk 0:00:42]}  Rc8 {[%clk 0:00:02]} 65. Re8 {[%clk 0:00:42]}  Ke3 {[%clk 0:00:02]} 66. Rxc8 {[%clk 0:00:42]}  f3 {[%clk 0:00:02]} 67. Rf8 {[%clk 0:00:41]}  f2 {[%clk 0:00:02]} 68. Kc3 {[%clk 0:00:41]}  Bf3 {[%clk 0:00:02]} 69. Re8+ {[%clk 0:00:41]}  Kf4 {[%clk 0:00:02]} 70. Rf8+ {[%clk 0:00:40]}  Kg3 {[%clk 0:00:02]} 71. Rg8+ {[%clk 0:00:39]}  Kh4 {[%clk 0:00:03]} 72. Rh8+ {[%clk 0:00:37]}  Kg5 {[%clk 0:00:03]} 73. Rg8+ {[%clk 0:00:36]}  Kf6 {[%clk 0:00:03]} 74. Rg2 {[%clk 0:00:36]}  Bxg2 {[%clk 0:00:03]} 75. Kd4 {[%clk 0:00:36]}  f1=Q {[%clk 0:00:03]} 76. Ke3 {[%clk 0:00:36]}  Qf3+ {[%clk 0:00:03]} 77. Kd2 {[%clk 0:00:36]}  Qb3 {[%clk 0:00:02]} 78. Ke1 {[%clk 0:00:36]}  Qb2 {[%clk 0:00:01]} 79. Kd1 {[%clk 0:00:36]}  Bf3+ {[%clk 0:00:02]} 80. Ke1 {[%clk 0:00:36]}  Qe2# {[%clk 0:00:02]} 0-1


[Site "https://www.chess.com"]

[Event "Early Titled Tuesday Blitz | February 8 2022"]
[White "Iljin, Timofey"]
[Black "Bruned, Yvain"]
[WhiteFideId "14110180"]
[BlackFideId "2250292"]
[WhiteElo "2396"]
[BlackElo "2073"]
[Result "1-0"]
[Round "07"]
[TimeControl "180+1"]
[Date "2022.02.08"]
[WhiteClock "0:02:49"]
[BlackClock "0:02:45"]

1. d4 {[%clk 0:03:00]}  b6 {[%clk 0:03:00]} 2. e4 {[%clk 0:02:59]}  Bb7 {[%clk 0:03:01]} 3. Bd3 {[%clk 0:03:00]}  e6 {[%clk 0:03:01]} 4. Nf3 {[%clk 0:02:59]}  d5 {[%clk 0:03:02]} 5. exd5 {[%clk 0:02:58]}  Qxd5 {[%clk 0:03:02]} 6. O-O {[%clk 0:02:59]}  Nf6 {[%clk 0:03:00]} 7. c4 {[%clk 0:02:59]}  Qd8 {[%clk 0:03:00]} 8. Nc3 {[%clk 0:02:58]}  Be7 {[%clk 0:03:00]} 9. Re1 {[%clk 0:02:57]}  O-O {[%clk 0:03:01]} 10. Bf4 {[%clk 0:02:57]}  a6 {[%clk 0:03:00]} 11. Qe2 {[%clk 0:02:57]}  Re8 {[%clk 0:02:59]} 12. Rad1 {[%clk 0:02:57]}  Nbd7 {[%clk 0:02:58]} 13. Ng5 {[%clk 0:02:56]}  h6 {[%clk 0:02:57]} 14. Nxf7 {[%clk 0:02:53]}  Kxf7 {[%clk 0:02:47]} 15. Qxe6+ {[%clk 0:02:49]}  Kf8 {[%clk 0:02:45]} 16. Bg6 {[%clk 0:02:49]} 1-0


[Site "https://www.chess.com"]

[Event "Early Titled Tuesday Blitz | February 8 2022"]
[White "Jaferian, Koosha"]
[Black "Demchenko, Anton"]
[WhiteFideId "12507440"]
[BlackFideId "4160258"]
[WhiteElo "2027"]
[BlackElo "2539"]
[Result "0-1"]
[Round "07"]
[TimeControl "180+1"]
[Date "2022.02.08"]
[WhiteClock "0:00:01"]
[BlackClock "0:00:14"]

1. Nf3 {[%clk 0:03:00]}  Nf6 {[%clk 0:02:58]} 2. b3 {[%clk 0:03:01]}  g6 {[%clk 0:02:56]} 3. Bb2 {[%clk 0:03:00]}  Bg7 {[%clk 0:02:57]} 4. g3 {[%clk 0:02:59]}  d6 {[%clk 0:02:57]} 5. d4 {[%clk 0:02:59]}  b5 {[%clk 0:02:58]} 6. Bg2 {[%clk 0:02:58]}  Bb7 {[%clk 0:02:59]} 7. O-O {[%clk 0:02:59]}  O-O {[%clk 0:02:59]} 8. c4 {[%clk 0:02:59]}  bxc4 {[%clk 0:02:59]} 9. bxc4 {[%clk 0:02:59]}  Nbd7 {[%clk 0:03:00]} 10. Nbd2 {[%clk 0:02:53]}  Rb8 {[%clk 0:02:56]} 11. Rb1 {[%clk 0:02:52]}  Ne4 {[%clk 0:02:55]} 12. e3 {[%clk 0:02:44]}  Nb6 {[%clk 0:02:52]} 13. Qc2 {[%clk 0:02:26]}  Nxd2 {[%clk 0:02:50]} 14. Nxd2 {[%clk 0:02:27]}  Bxg2 {[%clk 0:02:50]} 15. Kxg2 {[%clk 0:02:28]}  Qd7 {[%clk 0:02:47]} 16. Kg1 {[%clk 0:01:52]}  Qc6 {[%clk 0:02:24]} 17. Rfc1 {[%clk 0:01:49]}  e6 {[%clk 0:02:21]} 18. Ba3 {[%clk 0:01:28]}  Nd7 {[%clk 0:01:48]} 19. Rxb8 {[%clk 0:01:21]}  Rxb8 {[%clk 0:01:47]} 20. Rb1 {[%clk 0:01:22]}  Rb6 {[%clk 0:01:45]} 21. Rb3 {[%clk 0:01:03]}  h6 {[%clk 0:01:39]} 22. h3 {[%clk 0:01:01]}  Qa4 {[%clk 0:01:34]} 23. Qb2 {[%clk 0:00:53]}  c5 {[%clk 0:01:32]} 24. Rxb6 {[%clk 0:00:51]}  Qd1+ {[%clk 0:01:22]} 25. Kg2 {[%clk 0:00:45]}  Nxb6 {[%clk 0:01:17]} 26. Qc3 {[%clk 0:00:37]}  Qe2 {[%clk 0:00:55]} 27. Qa5 {[%clk 0:00:19]}  cxd4 {[%clk 0:00:53]} 28. Nf1 {[%clk 0:00:09]}  dxe3 {[%clk 0:00:45]} 29. Nxe3 {[%clk 0:00:09]}  Bd4 {[%clk 0:00:44]} 30. Bc1 {[%clk 0:00:06]}  Nxc4 {[%clk 0:00:40]} 31. Qd8+ {[%clk 0:00:04]}  Kh7 {[%clk 0:00:28]} 32. Qd7 {[%clk 0:00:04]}  Kg7 {[%clk 0:00:22]} 33. Ng4 {[%clk 0:00:02]}  g5 {[%clk 0:00:20]} 34. h4 {[%clk 0:00:02]}  Qxg4 {[%clk 0:00:19]} 35. hxg5 {[%clk 0:00:03]}  hxg5 {[%clk 0:00:19]} 36. Qc8 {[%clk 0:00:03]}  Qe4+ {[%clk 0:00:18]} 37. Kh2 {[%clk 0:00:03]}  Qc2 {[%clk 0:00:14]} 38. Bxg5 {[%clk 0:00:02]}  Qxf2+ {[%clk 0:00:15]} 39. Kh3 {[%clk 0:00:03]}  Qf1+ {[%clk 0:00:15]} 40. Kg4 {[%clk 0:00:02]}  Ne5+ {[%clk 0:00:15]} 41. Kh5 {[%clk 0:00:01]}  Qf3+ {[%clk 0:00:14]} 0-1


[Site "https://www.chess.com"]